Cogmind - Beta 10.1 @@@ ROGUE MODE // 2020.09.29 @ 11:33:12 Player: Robinson Result: Destroyed by S-10 Pest with Light Assault Rifle Performance ------------- Evolutions (1) 500 Regions Visited (3) 600 Robots Destroyed (24) 120 Value Destroyed (440) 440 Prototype IDs (2) 40 Alien Tech Used (0) 0 Bonus (0) 0 TOTAL SCORE: 1700 Bonus ------- None Cogmind --------- Core Integrity 0/400 Matter 130/450 Energy 99/100 System Corruption 0% Temperature Cool (0) Movement Core (50) Location -9/Materials Parts ------- > --- POWER (1) -------- (None) > --- PROPULSION (2) --- (None) > --- UTILITY (4) ------ Compact Matter Pod Structural Scanner Terrain Scan Processor Targeting Computer > --- WEAPON (2) ------- (None) > --- INVENTORY (4) ---- Improved Targeting Computer Armor Integrity Analyzer Medium Armor Plating Integration Mediator Peak State ------------ > --- POWER ------------ Fission Core > --- PROPULSION ------- Wheel Compact Wheel > --- UTILITY ---------- Structural Scanner Terrain Scan Processor Targeting Computer Phase Shifter > --- WEAPON ----------- Bore Cannon Grenade Launcher > --- INVENTORY -------- Armor Integrity Analyzer Rocket Launcher [Rating: 22] Favorites ----------- Power Fission Core Engine Light Ion Engine Power Core Fission Core Propulsion Wheel Wheel Wheel Utility Structural Scanner Device Structural Scanner Storage Medium Matter Pod Processor Terrain Scan Processor Weapon Assault Rifle Energy Gun EM Shotgun Ballistic Gun Assault Rifle Ballistic Cannon Bore Cannon Launcher Grenade Launcher Special Weapon Plasma Cutter Build | -11 -10 -10 -9 ------- Run | Scr Mat Min Mat Slots Evolved 2 | . . . 2 Power . | . . . . Propulsion . | . . . . Utility 2 | . . . 2 Weapon . | . . . . Parts Attached 27 | 5 2 12 8 Power 4 | 1 . 3 . Engine 3 | 1 . 2 . Core 1 | . . 1 . Reactor . | . . . . Propulsion 7 | 2 . 5 . Treads . | . . . . Leg . | . . . . Wheel 7 | 2 . 5 . Hover . | . . . . Flight . | . . . . Utility 9 | . 2 2 5 Device 3 | . . 1 2 Storage 3 | . 1 . 2 Processor 3 | . 1 1 1 Hackware . | . . . . Protection . | . . . . Artifact . | . . . . Weapon 7 | 2 . 2 3 Energy Gun 1 | . . . 1 Energy Cannon . | . . . . Ballistic Gun 2 | 2 . . . Ballistic Cannon 1 | . . 1 . Launcher 2 | . . 1 1 Special Weapon 1 | . . . 1 Impact Weapon . | . . . . Slashing Weapon . | . . . . Piercing Weapon . | . . . . Special Melee Weapon . | . . . . Unidentified Prototypes . | . . . . Parts Lost 14 | . . 5 9 Power 2 | . . 1 1 Propulsion 5 | . . 3 2 Utility 1 | . . . 1 Weapon 6 | . . 1 5 Highest Loss Streak 5 | . . 5 4 Average Slot Usage (%) 77 | . 79 92 69 Engine 2 | . 14 3 . Core 5 | . . 5 6 Wheel 16 | . 28 25 10 Device 11 | . . 4 16 Storage 5 | . 1 9 2 Processor 17 | . 7 14 21 Ballistic Gun 6 | . 28 11 . Ballistic Cannon 4 | . . 5 4 Launcher 6 | . . 10 4 Naked Turns . | . . . . Heaviest Build 25 | 7 9 24 25 Greatest Support 26 | 20 20 26 26 Greatest Overweight (x) 4 | . . 2 4 Average Overweight (x) . | . . . . Largest Inventory Capacity 4 | 4 4 4 4 Average Capacity 4 | 4 4 4 4 Most Carried 4 | 4 4 4 4 Average Carried 2 | . 2 3 3 Final Capacity 4 | 4 4 4 4 Final Carried 4 | . 4 4 4 Class Distribution -------------------- 61% | Mutant 38% | Scavenger-Mutant Dominant Class ---------------- Mutant | -10/Materials Mutant | -10/Mines Scavenger-Mutant | -9/Materials Resources | -11 -10 -10 -9 ----------- Run | Scr Mat Min Mat Matter Collected 773 | 298 10 304 161 Remotely . | . . . . Salvage Created 475 | 72 38 123 242 Parts 31 | 5 3 6 17 Haulers Intercepted . | . . . . Recyclers Shooed . | . . . . Parts Field Recycled . | . . . . Retrieved Matter . | . . . . Parts Self-Destructed . | . . . . Prevented . | . . . . Kills | -11 -10 -10 -9 ------- Run | Scr Mat Min Mat Combat Hostiles Destroyed 12 | 1 . 5 6 Guns 4 | 1 . 3 . Cannons 1 | . . . 1 AOE 7 | . . 2 5 Classes Destroyed 7 | 2 1 3 1 Worker 5 | 1 1 1 2 Builder 2 | . . 1 1 Recycler 1 | . . 1 . Watcher 4 | . 1 . 3 Grunt 6 | 1 . . 5 Sentry 1 | . . . 1 Assembled 5 | . . 5 . Best Kill Streak 6 | 1 2 4 6 Combat Bots Only 4 | 1 . 4 4 Max Kills in Single Turn 2 | 1 1 1 2 Gunslinging . | . . . . Exploded 1 | . . 1 1 Melee . | . . . . Uniques/NPCs Destroyed . | . . . . Combat | -11 -10 -10 -9 -------- Run | Scr Mat Min Mat Damage Taken 1558 | 45 160 418 935 Core 578 | 23 36 112 407 Absorbed by Shields 54 | . . . 54 Core Remaining (%) 60 | 90 . 31 . Volleys Fired 61 | 8 5 21 27 Largest 2 | 2 2 2 2 Hottest 102 | 40 40 87 102 Shots Fired 105 | 16 10 35 44 Gun 52 | 16 10 22 4 Cannon 25 | . . 8 17 Launcher 22 | . . 5 17 Special 6 | . . . 6 Kinetic 73 | 16 10 30 17 Thermal 6 | . . . 6 Explosive 22 | . . 5 17 Electromagnetic 4 | . . . 4 Robot Hit Streak 10 | 4 6 10 5 Robot Miss Streak 4 | 2 2 4 3 Penetration Max . | . . . . Secondary Targets . | . . . . Shots Hit Robots 56 | 9 5 21 21 Core Hits 40 | 3 3 12 22 Critical Hits 7 | . . 4 3 Critical Kills 2 | . . 2 . Critical Parts Destroyed 4 | . . 2 2 Melee Attacks . | . . . . Impact . | . . . . Slashing . | . . . . Piercing . | . . . . Sneak Attacks . | . . . . Combat Hostiles . | . . . . Follow-up Attacks . | . . . . Damage Inflicted 1516 | 98 50 403 965 Guns 394 | 98 50 188 58 Cannons 223 | . . 96 127 Explosions 882 | . . 117 765 Melee . | . . . . Ramming 7 | . . 2 5 Kinetic 559 | 98 50 284 127 Thermal 118 | . . . 118 Explosive 774 | . . 117 657 Electromagnetic 58 | . . . 58 Impact . | . . . . Slashing . | . . . . Piercing . | . . . . Highest Corruption . | . . . . Average Corruption . | . . . . Corruption Purged . | . . . . Overload Shots . | . . . . Overflow Damage 4 | . . . 4 Projectiles . | . . . . Explosions 4 | . . . 4 Melee . | . . . . Knockbacks 1 | . . 1 . Impact . | . . . . Kinetic 1 | . . 1 . Secondary . | . . . . Self-Inflicted Damage 48 | . . 1 47 Shots 1 | . . . 1 Rammed 2 | . . 1 1 Targets Rammed 2 | . . 1 1 Kicked . | . . . . Crushed . | . . . . Highest Temperature 229 | . 6 110 229 Average Temperature 74 | . 6 44 84 Received Heat Transfer 414 | 24 . 27 363 Siege Activations . | . . . . Robots Corrupted . | . . . . Combat Hostiles . | . . . . Parts Fried . | . . . . Impact Corruptions . | . . . . Robots Melted . | . . . . Combat Hostiles . | . . . . Parts Melted . | . . . . Heat Transferred 237 | . . . 237 Parts Sabotaged . | . . . . Parts Stolen . | . . . . Parts Stripped . | . . . . Power Chain Reactions 1 | . . . 1 Missiles Intercepted . | . . . . Alert | -11 -10 -10 -9 ------- Run | Scr Mat Min Mat Peak Influence 331 | 25 43 40 331 Initial 16 | . 16 16 15 Average 111 | 5 27 22 192 Maximum Alert Level 1 | . . . 1 Low Security (%) 73 | 100 100 100 50 Level 1 26 | . . . 49 Level 2 . | . . . . Level 3 . | . . . . Level 4 . | . . . . Level 5 . | . . . . High Security . | . . . . Max Security . | . . . . Squads Dispatched 1 | . . . 1 Investigation . | . . . . Extermination . | . . . . Reinforcement 1 | . . . 1 Assault . | . . . . Garrison . | . . . . Intercept . | . . . . Construction Impeded . | . . . . Haulers Reinforced . | . . . . Stealth | -11 -10 -10 -9 --------- Run | Scr Mat Min Mat Distress Signals 1 | . . . 1 Communications Jammed . | . . . . Distress Signals . | . . . . Times Spotted 40 | 1 7 9 23 Peak Tracking Total 8 | 1 7 6 8 Tactical Retreats 9 | . . 3 6 Traps | -11 -10 -10 -9 ------- Run | Scr Mat Min Mat Traps Triggered . | . . . . Indirectly . | . . . . Trap Hack Attempts . | . . . . Triggered . | . . . . Disarmed . | . . . . Reprogrammed . | . . . . Reused . | . . . . Traps Extracted . | . . . . Installed . | . . . . Triggered . | . . . . Machines | -11 -10 -10 -9 ---------- Run | Scr Mat Min Mat Machines Disabled 8 | . . 1 7 Max in Single Turn 2 | . . 1 2 Machines Sabotaged . | . . . . Garrisons Compromised . | . . . . Overloaded Fab Kills . | . . . . Fab Network Shutdowns . | . . . . Hacking | -11 -10 -10 -9 --------- Run | Scr Mat Min Mat Machines Accessed 1 | . . . 1 Terminals 1 | . . . 1 Fabricators . | . . . . Repair Stations . | . . . . Recycling Units . | . . . . Scanalyzers . | . . . . Garrison Access . | . . . . Total Hacks 2 | . . . 2 Successful 1 | . . . 1 Failed 1 | . . . 1 Catastrophic . | . . . . Database Lockouts . | . . . . Manual . | . . . . Terminals 2 | . . . 2 Fabricators . | . . . . Repair Stations . | . . . . Recycling Units . | . . . . Scanalyzers . | . . . . Garrison Access . | . . . . Terminal Hacks 1 | . . . 1 Prototype ID Bank 1 | . . . 1 Fabricator Hacks . | . . . . Repair Station Hacks . | . . . . Recycling Unit Hacks . | . . . . Scanalyzer . | . . . . Garrison Access Hacks . | . . . . Unauthorized Hacks . | . . . . Terminals . | . . . . Fabricators . | . . . . Repair Stations . | . . . . Recycling Units . | . . . . Scanalyzers . | . . . . Garrison Access . | . . . . Data Cores Recovered . | . . . . Used . | . . . . Hacking Detections 1 | . . . 1 Full Trace Events . | . . . . Feedback Events . | . . . . Feedback Blocked . | . . . . Robot Schematics Acquired . | . . . . Robots Built . | . . . . Matter . | . . . . Time . | . . . . Total Robot Build Rating . | . . . . Part Schematics Acquired . | . . . . Parts Built . | . . . . Matter . | . . . . Time . | . . . . Total Part Build Rating . | . . . . Parts Repaired . | . . . . Time . | . . . . Parts Recycled . | . . . . Recycled Matter . | . . . . Retrieved Matter . | . . . . Retrieved Components . | . . . . Parts Scanalyzed . | . . . . Part Schematics Acquired . | . . . . Parts Damaged . | . . . . Bothacking | -11 -10 -10 -9 ------------ Run | Scr Mat Min Mat Used RIF Installer . | . . . . Robots Hacked . | . . . . Non-combat . | . . . . Combat . | . . . . Robot Hacks Applied . | . . . . Relay Couplers Released . | . . . . Robots Rewired . | . . . . Allies Hacked . | . . . . Hacks Repelled . | . . . . Allies | -11 -10 -10 -9 -------- Run | Scr Mat Min Mat Total Allies . | . . . . Largest Group . | . . . . Highest-Rated Group . | . . . . Highest-Rated Ally . | . . . . Total Orders . | . . . . Ally Attacks . | . . . . Total Damage . | . . . . Kills . | . . . . Allies Corrupted . | . . . . Allies Melted . | . . . . Intel | -11 -10 -10 -9 ------- Run | Scr Mat Min Mat Robot Analysis Total . | . . . . Derelict Logs Recovered . | . . . . Drone Launches . | . . . . Drone Recoveries . | . . . . Exploration | -11 -10 -10 -9 ------------- Run | Scr Mat Min Mat Turns Passed 999 | 82 77 309 531 Spaces Moved 967 | 71 69 247 580 Core 368 | 28 . 8 332 Treads . | . . . . Legs . | . . . . Wheels 599 | 43 69 239 248 Hover . | . . . . Flight . | . . . . Fastest Speed 50 | 50 80 80 50 Average Speed 76 | 68 80 90 72 Slowest Speed 250 | 80 80 150 250 Overloaded Moves . | . . . . Propulsion Burnouts . | . . . . Robots Hopped . | . . . . Cave-ins Triggered . | . . . . Exploration Rate (%) 31 | 6 22 58 38 Regions Visited 3 Branch Regions 1 Pre-discovered Areas . | . . . . Known Exits Taken . | . . . . Unknown Exits Taken 3 | 1 1 1 . Scrap Searched 2 | . . 2 . Spaces Dug . | . . . . Terrain Destroyed 234 | . . 49 185 Melee . | . . . . Projectile 14 | . . 4 10 AOE 220 | . . 45 175 Terrain Rammed . | . . . . Walls Destroyed . | . . . . Machines Disabled . | . . . . Actions | -11 -10 -10 -9 --------- Run | Scr Mat Min Mat Total 1111 | 88 80 300 643 Wait 21 | . . 2 19 Move 964 | 70 68 246 580 Hop . | . . . . Pick Up 26 | 5 5 10 6 Fast Attach 6 | . 1 3 2 Attach 20 | 5 1 8 6 Detach . | . . . . Swap 1 | . . 1 . Drop 10 | . . 8 2 Fire 61 | 8 5 21 27 Melee . | . . . . Ram 2 | . . 1 1 Kick . | . . . . Crush . | . . . . Escape Stasis . | . . . . Rewire . | . . . . Trap . | . . . . Miscellaneous . | . . . . Route ------- -11/Scrapyard -10/Materials -10/Mines -9/Materials History --------- Turn | Location | Event 2 | -11/Scrapyard | Met Revision 17 36 | -11/Scrapyard | Discovered new exit (range 8) 83 | -11/Scrapyard | Entered Materials 118 | -10/Materials | Discovered new exit (range 10) 160 | -10/Materials | Entered Mines 185 | -10/Mines | Assembled infested the area 190 | -10/Mines | Assisted by a Guerilla fighting off Assembled 230 | -10/Mines | Core integrity fell below 50% 267 | -10/Mines | Lost 5 parts (1p3n1w) 365 | -10/Mines | Build established: Mutant 391 | -10/Mines | Received a Rocket Launcher from a helpful Derelict 454 | -10/Mines | Discovered new exit (range 14) 469 | -10/Mines | Entered Materials 469 | -9/Materials | Evolved 2 slots: Utility x2 683 | -9/Materials | Build established: Scavenger-Mutant 701 | -9/Materials | Core integrity fell below 50% 730 | -9/Materials | Lost 4 parts (1n3w) 953 | -9/Materials | Core integrity fell below 20% 1000 | -9/Materials | Destroyed by S-10 Pest with Light Assault Rifle Last Messages --------------- U-05 Engineer lays Concrete. U-05 Engineer builds a Door. U-05 Engineer builds a Wall. K-01 Serf cleans the Material Compactor. Acquired Plasma Cutter. K-01 Serf cleans the Material Compactor. U-05 Engineer lays Concrete. U-05 Engineer builds a Wall. Acquired 2 matter. U-05 Engineer builds a Wall. U-05 Engineer lays Concrete. Dropped Shield Generator. Atomic Centrifuge disabled. Plasma Cutter destroyed. U-05 Engineer builds a Wall. Acquired 4 matter. T-07 Excavator is excavating. Slammed into T-07 Excavator. S-10 Pest destroyed. Acquired Med. Armor Plating. Map ----- +----------------------------------------------------+ | # !#?### ##?#????????? | | ### #####?# # #???????????? | | ## ##????### #???????????? | | ## #?????# #???????????? | | #####+###???# ###+##########???????? | | #???### #???????? | | "" ####### """ #???????? | | """ / / T ! """ #???????? | | """ ######## " """ #???????? | | """ #??????# #???????? | | "" #??????#######+######???????? | | #??????###### ######+####??? | | ##/######?????# + #??? | | ?????????# #%= """ #??? | | !#????????# #* """"" #??? | | #????????# # """"" #??? | | ?????? # """"" #??? | | ??? " + """ #??? | | # ####??###### """ # #??? | | # #??????????# "" # #??? | | # #??????????# """ ######s####??? | | + #??????????# ??"" # #???? | | # #??????????#????" #!!! #???? | | # #???????????????" #!!! """#???? | | # #???????????????" #!! """#???? | | ? ????????????????? # @ """#???? | | ? ????????????????? # """#???? | | ? ???????????????????# """#???? | | ???????????????????????+ #???? | | ???????????????????????# #???? | | ???????????????????????##########???? | | ????????????????????????????????????? | | ????????????????????????????????????? | | ????????????????????????????????????? | | ????????????????????????????????????? | | ????????????????????????????????????? | | ????????????????????????????????????? | | ????????????????????????????????????? | | | | | | | | | | | | | | | | | | | | | | | | | +----------------------------------------------------+ Best States ------------- Heat Dissipation 28 Energy Generation 18 Energy Capacity 310 Matter Stores 300 Matter Capacity 450 Sight Range 16 Terrain Scan Density 85 Phase Shifting 5 Evasion (%) 50 Targeting Accuracy 5 Item Schematics ----------------- None Robot Schematics ------------------ None Fabricated ------------ Nothing Alien Tech Used ----------------- None Achievements -------------- I Survived The Infestation Remodeling Challenges ------------ None Game ------ Seed CoreSpreadNullifier Manual? 0 Play Time 00:38:55 Cumulative 3.9 hours Start 2020.09.29 @ 10:17:29 End 2020.09.29 @ 11:33:12 Sessions 1 Manual Loads 0 Difficulty Rogue Special Mode None Game No. 2 Rogue 2 Adventurer 0 Explorer 0 Win Type - Total 0 Types 0/0/0/0/0/0/0/0/0 Lore% 1 Gallery% 6 Achievement% 8 Wizard Run 0 Options --------- ASCII 1 Keyboard 0 Movement Mouse Keybinds 0 Fullscreen 1 Font 18/SmallcapsGlow Map View 76x50 Tactical HUD 0 Map Filters NONE Filters NONE Steam 1 RUN: a0b738c1-b089-40a3-bcb0-319630c26902